Workbook

Sheet 总成绩
A1: 附件1：
A2: 修文县2022年“特岗计划”教师招聘总成绩及进入体检人员名单
A3: 序号 | B3: 姓名 | C3: 准考证号 | D3: 招聘单位代码 | E3: 招聘单位 | F3: 招聘岗位代码及岗位名称 | G3: 笔试成绩（100分制） | H3: 笔试成绩50%折合分 | I3: 面试成绩（100分制） | J3: 面试成绩50%折合分 | K3: 总成绩 | L3: 是否进入体检
A4: 1 | B4: 罗慧 | C4: GY22060204 | D4: 220605 | E4: 修文县六桶镇中心小学 | F4: 01小学语文教师 | G4: 77 | H4: =G4*0.5 -> 38.5 | I4: 87.75 | J4: =ROUND(I4*0.5,2) -> 43.88 | K4: =H4+J4 -> 82.38 | L4: 进入体检
A5: 2 | B5: 姚沁怡 | C5: GY22060223 | D5: 220605 | E5: 修文县六桶镇中心小学 | F5: 01小学语文教师 | G5: 75.5 | H5: 37.75 | I5: 87.75 | J5: 43.88 | K5: 81.63 | L5: 进入体检
A6: 3 | B6: 胡群 | C6: GY22060107 | D6: 220605 | E6: 修文县六桶镇中心小学 | F6: 01小学语文教师 | G6: 70.5 | H6: 35.25 | I6: 90.64 | J6: 45.32 | K6: 80.57 | L6: 进入体检
A7: 4 | B7: 李惠英 | C7: GY22060208 | D7: 220605 | E7: 修文县六桶镇中心小学 | F7: 01小学语文教师 | G7: 71.5 | H7: 35.75 | I7: 85.86 | J7: 42.93 | K7: 78.68 | L7: 进入体检
A8: 5 | B8: 王章迅 | C8: GY22060126 | D8: 220605 | E8: 修文县六桶镇中心小学 | F8: 01小学语文教师 | G8: 69 | H8: 34.5 | I8: 87.95 | J8: 43.98 | K8: 78.48
A9: 6 | B9: 黄寻 | C9: GY22060110 | D9: 220605 | E9: 修文县六桶镇中心小学 | F9: 01小学语文教师 | G9: 76 | H9: 38 | I9: 79.99 | J9: 40 | K9: 78
A10: 7 | B10: 陈丽红 | C10: GY22060123 | D10: 220605 | E10: 修文县六桶镇中心小学 | F10: 01小学语文教师 | G10: 71.5 | H10: 35.75 | I10: 84.23 | J10: 42.12 | K10: 77.87
A11: 8 | B11: 杨欢欢 | C11: GY22060227 | D11: 220605 | E11: 修文县六桶镇中心小学 | F11: 01小学语文教师 | G11: 66.5 | H11: 33.25 | I11: 87.59 | J11: 43.8 | K11: 77.05
A12: 9 | B12: 付金兰 | C12: GY22060128 | D12: 220605 | E12: 修文县六桶镇中心小学 | F12: 01小学语文教师 | G12: 69.5 | H12: 34.75 | I12: 84.34 | J12: 42.17 | K12: 76.92
A13: 10 | B13: 冯文丽 | C13: GY22060209 | D13: 220605 | E13: 修文县六桶镇中心小学 | F13: 01小学语文教师 | G13: 69.5 | H13: 34.75 | I13: 83.66 | J13: 41.83 | K13: 76.58
A14: 11 | B14: 王建敏 | C14: GY22060129 | D14: 220605 | E14: 修文县六桶镇中心小学 | F14: 01小学语文教师 | G14: 66.5 | H14: 33.25 | I14: 84.52 | J14: 42.26 | K14: 75.51
A15: 12 | B15: 龙相英 | C15: GY22060117 | D15: 220605 | E15: 修文县六桶镇中心小学 | F15: 01小学语文教师 | G15: 67.5 | H15: 33.75 | I15: 79.42 | J15: 39.71 | K15: 73.46
A16: 13 | B16: 汪梅 | C16: GY22060222 | D16: 220605 | E16: 修文县六桶镇中心小学 | F16: 02小学语文教师 | G16: 78 | H16: 39 | I16: 90.15 | J16: 45.08 | K16: 84.08 | L16: 进入体检
A17: 14 | B17: 崔同娇 | C17: GY22060229 | D17: 220605 | E17: 修文县六桶镇中心小学 | F17: 02小学语文教师 | G17: 78.5 | H17: 39.25 | I17: 86.29 | J17: 43.15 | K17: 82.4 | L17: 进入体检
A18: 15 | B18: 李惠 | C18: GY22060205 | D18: 220605 | E18: 修文县六桶镇中心小学 | F18: 02小学语文教师 | G18: 74 | H18: 37 | I18: 84.36 | J18: 42.18 | K18: 79.18 | L18: 进入体检
A19: 16 | B19: 周燚 | C19: GY22060211 | D19: 220605 | E19: 修文县六桶镇中心小学 | F19: 02小学语文教师 | G19: 75 | H19: 37.5 | I19: 81.74 | J19: 40.87 | K19: 78.37
A20: 17 | B20: 罗柳 | C20: GY22060202 | D20: 220605 | E20: 修文县六桶镇中心小学 | F20: 02小学语文教师 | G20: 69 | H20: 34.5 | I20: 87.62 | J20: 43.81 | K20: 78.31
A21: 18 | B21: 廖文翠 | C21: GY22060226 | D21: 220605 | E21: 修文县六桶镇中心小学 | F21: 02小学语文教师 | G21: 69 | H21: 34.5 | I21: 86.79 | J21: 43.4 | K21: 77.9
A22: 19 | B22: 彭垚 | C22: GY22060102 | D22: 220605 | E22: 修文县六桶镇中心小学 | F22: 02小学语文教师 | G22: 70 | H22: 35 | I22: 85.29 | J22: 42.65 | K22: 77.65
A23: 20 | B23: 冯建霞 | C23: GY22060125 | D23: 220605 | E23: 修文县六桶镇中心小学 | F23: 02小学语文教师 | G23: 69.5 | H23: 34.75 | I23: 84.97 | J23: 42.49 | K23: 77.24
A24: 21 | B24: 顾婷 | C24: GY22060219 | D24: 220605 | E24: 修文县六桶镇中心小学 | F24: 02小学语文教师 | G24: 73 | H24: 36.5 | I24: 80.87 | J24: 40.44 | K24: 76.94
A25: 22 | B25: 徐仙琼 | C25: GY22060105 | D25: 220605 | E25: 修文县六桶镇中心小学 | F25: 02小学语文教师 | G25: 74.5 | H25: 37.25 | I25: 78.46 | J25: 39.23 | K25: 76.48
A26: 23 | B26: 何倩银 | C26: GY22060414 | D26: 220603 | E26: 修文县洒坪镇中心小学 | F26: 01小学语文教师 | G26: 74.5 | H26: 37.25 | I26: 88.26 | J26: 44.13 | K26: 81.38 | L26: 进入体检
A27: 24 | B27: 彭家迪 | C27: GY22060313 | D27: 220603 | E27: 修文县洒坪镇中心小学 | F27: 01小学语文教师 | G27: 76.5 | H27: 38.25 | I27: 83.90 | J27: 41.95 | K27: 80.2 | L27: 进入体检
A28: 25 | B28: 刘蓉 | C28: GY22060323 | D28: 220603 | E28: 修文县洒坪镇中心小学 | F28: 01小学语文教师 | G28: 72 | H28: 36 | I28: 84.69 | J28: 42.35 | K28: 78.35 | L28: 进入体检
A29: 26 | B29: 王梦霞 | C29: GY22060321 | D29: 220603 | E29: 修文县洒坪镇中心小学 | F29: 01小学语文教师 | G29: 68 | H29: 34 | I29: 88.66 | J29: 44.33 | K29: 78.33 | L29: 进入体检
A30: 27 | B30: 罗静 | C30: GY22060311 | D30: 220603 | E30: 修文县洒坪镇中心小学 | F30: 01小学语文教师 | G30: 68 | H30: 34 | I30: 88.16 | J30: 44.08 | K30: 78.08
A31: 28 | B31: 李润霞 | C31: GY22060327 | D31: 220603 | E31: 修文县洒坪镇中心小学 | F31: 01小学语文教师 | G31: 67.5 | H31: 33.75 | I31: 88.25 | J31: 44.13 | K31: 77.88
A32: 29 | B32: 李文 | C32: GY22060413 | D32: 220603 | E32: 修文县洒坪镇中心小学 | F32: 01小学语文教师 | G32: 68 | H32: 34 | I32: 87.48 | J32: 43.74 | K32: 77.74
A33: 30 | B33: 杨绍霞 | C33: GY22060324 | D33: 220603 | E33: 修文县洒坪镇中心小学 | F33: 01小学语文教师 | G33: 67 | H33: 33.5 | I33: 85.20 | J33: 42.6 | K33: 76.1
A34: 31 | B34: 王朝阳 | C34: GY22060305 | D34: 220603 | E34: 修文县洒坪镇中心小学 | F34: 01小学语文教师 | G34: 68.5 | H34: 34.25 | I34: 82.59 | J34: 41.3 | K34: 75.55
A35: 32 | B35: 马竹 | C35: GY22060322 | D35: 220603 | E35: 修文县洒坪镇中心小学 | F35: 01小学语文教师 | G35: 68.5 | H35: 34.25 | I35: 82.52 | J35: 41.26 | K35: 75.51
A36: 33 | B36: 杨小云 | C36: GY22060303 | D36: 220603 | E36: 修文县洒坪镇中心小学 | F36: 01小学语文教师 | G36: 67 | H36: 33.5 | I36: 82.03 | J36: 41.02 | K36: 74.52
A37: 34 | B37: 李道麟 | C37: GY22060403 | D37: 220603 | E37: 修文县洒坪镇中心小学 | F37: 01小学语文教师 | G37: 67 | H37: 33.5 | I37: 82.44 | J37: 41.22 | K37: 74.72
A38: 35 | B38: 赵文婷 | C38: GY22060314 | D38: 220603 | E38: 修文县洒坪镇中心小学 | F38: 01小学语文教师 | G38: 70 | H38: 35 | I38: 缺考
A39: 36 | B39: 高丽 | C39: GY22060424 | D39: 220601 | E39: 修文县小箐镇中心小学 | F39: 01小学语文教师 | G39: 84 | H39: 42 | I39: 85.94 | J39: 42.97 | K39: 84.97 | L39: 进入体检
A40: 37 | B40: 黎国洋 | C40: GY22060421 | D40: 220601 | E40: 修文县小箐镇中心小学 | F40: 01小学语文教师 | G40: 79 | H40: 39.5 | I40: 89.48 | J40: 44.74 | K40: 84.24 | L40: 进入体检
A41: 38 | B41: 龙慧 | C41: GY22060504 | D41: 220601 | E41: 修文县小箐镇中心小学 | F41: 01小学语文教师 | G41: 76 | H41: 38 | I41: 90.22 | J41: 45.11 | K41: 83.11
A42: 39 | B42: 岳倩 | C42: GY22060510 | D42: 220601 | E42: 修文县小箐镇中心小学 | F42: 01小学语文教师 | G42: 80.5 | H42: 40.25 | I42: 84.45 | J42: 42.23 | K42: 82.48
A43: 40 | B43: 龚毅 | C43: GY22060427 | D43: 220601 | E43: 修文县小箐镇中心小学 | F43: 01小学语文教师 | G43: 75 | H43: 37.5 | I43: 82.35 | J43: 41.18 | K43: 78.68
A44: 41 | B44: 詹梅 | C44: GY22060119 | D44: 220601 | E44: 修文县小箐镇中心小学 | F44: 01小学语文教师 | G44: 78 | H44: 39 | I44: 79.34 | J44: 39.67 | K44: 78.67
A45: 42 | B45: 李社菊 | C45: GY22060915 | D45: 220605 | E45: 修文县六桶镇中心小学 | F45: 05小学道德与法治教师 | G45: 81 | H45: 40.5 | I45: 84.50 | J45: 42.25 | K45: 82.75 | L45: 进入体检
A46: 43 | B46: 包红艳 | C46: GY22060916 | D46: 220605 | E46: 修文县六桶镇中心小学 | F46: 05小学道德与法治教师 | G46: 85 | H46: 42.5 | I46: 78.93 | J46: 39.47 | K46: 81.97
A47: 44 | B47: 刘芹 | C47: GY22060912 | D47: 220605 | E47: 修文县六桶镇中心小学 | F47: 05小学道德与法治教师 | G47: 78 | H47: 39 | I47: 83.11 | J47: 41.56 | K47: 80.56
A48: 45 | B48: 陈红艳 | C48: GY22060610 | D48: 220605 | E48: 修文县六桶镇中心小学 | F48: 03小学数学教师 | G48: 76 | H48: 38 | I48: 88.31 | J48: 44.16 | K48: 82.16 | L48: 进入体检
A49: 46 | B49: 李冰 | C49: GY22060607 | D49: 220605 | E49: 修文县六桶镇中心小学 | F49: 03小学数学教师 | G49: 76 | H49: 38 | I49: 83.43 | J49: 41.72 | K49: 79.72 | L49: 进入体检
A50: 47 | B50: 罗莹莹 | C50: GY22060606 | D50: 220605 | E50: 修文县六桶镇中心小学 | F50: 03小学数学教师 | G50: 73 | H50: 36.5 | I50: 83.31 | J50: 41.66 | K50: 78.16 | L50: 进入体检
A51: 48 | B51: 冯艺 | C51: GY22060615 | D51: 220605 | E51: 修文县六桶镇中心小学 | F51: 03小学数学教师 | G51: 72 | H51: 36 | I51: 83.32 | J51: 41.66 | K51: 77.66 | L51: 进入体检
A52: 49 | B52: 晏蜜 | C52: GY22060611 | D52: 220605 | E52: 修文县六桶镇中心小学 | F52: 03小学数学教师 | G52: 57 | H52: 28.5 | I52: 85.15 | J52: 42.58 | K52: 71.08 | L52: 进入体检
A53: 50 | B53: 李朝贤 | C53: GY22060612 | D53: 220605 | E53: 修文县六桶镇中心小学 | F53: 03小学数学教师 | G53: 38 | H53: 19 | I53: 89.22 | J53: 44.61 | K53: 63.61
A54: 51 | B54: 唐镇南 | C54: GY22060605 | D54: 220605 | E54: 修文县六桶镇中心小学 | F54: 03小学数学教师 | G54: 58 | H54: 29 | I54: 68.48 | J54: 34.24 | K54: 63.24
A55: 52 | B55: 张景 | C55: GY22060613 | D55: 220605 | E55: 修文县六桶镇中心小学 | F55: 03小学数学教师 | G55: 63 | H55: 31.5 | I55: 61.45 | J55: 30.73 | K55: 62.23
A56: 53 | B56: 张春春 | C56: GY22060604 | D56: 220605 | E56: 修文县六桶镇中心小学 | F56: 03小学数学教师 | G56: 36 | H56: 18 | I56: 75.34 | J56: 37.67 | K56: 55.67
A57: 54 | B57: 董伯鑫 | C57: GY22060614 | D57: 220605 | E57: 修文县六桶镇中心小学 | F57: 03小学数学教师 | G57: 37 | H57: 18.5 | I57: 71.87 | J57: 35.94 | K57: 54.44
A58: 55 | B58: 代欢 | C58: GY22060608 | D58: 220605 | E58: 修文县六桶镇中心小学 | F58: 03小学数学教师 | G58: 25 | H58: 12.5 | I58: 82.50 | J58: 41.25 | K58: 53.75
A59: 56 | B59: 龙跃洋 | C59: GY22060609 | D59: 220605 | E59: 修文县六桶镇中心小学 | F59: 03小学数学教师 | G59: 25 | H59: 12.5 | I59: 78.08 | J59: 39.04 | K59: 51.54
A60: 57 | B60: 李丹 | C60: GY22060623 | D60: 220601 | E60: 修文县小箐镇中心小学 | F60: 02小学数学教师 | G60: 47 | H60: 23.5 | I60: 87.99 | J60: 44 | K60: 67.5 | L60: 进入体检
A61: 58 | B61: 杨娅婷 | C61: GY22060627 | D61: 220601 | E61: 修文县小箐镇中心小学 | F61: 02小学数学教师 | G61: 37 | H61: 18.5 | I61: 85.12 | J61: 42.56 | K61: 61.06 | L61: 进入体检
A62: 59 | B62: 吴霞 | C62: GY22060625 | D62: 220601 | E62: 修文县小箐镇中心小学 | F62: 02小学数学教师 | G62: 39 | H62: 19.5 | I62: 74.15 | J62: 37.08 | K62: 56.58
A63: 60 | B63: 蔡芸 | C63: GY22060629 | D63: 220601 | E63: 修文县小箐镇中心小学 | F63: 02小学数学教师 | G63: 29 | H63: 14.5 | I63: 81.46 | J63: 40.73 | K63: 55.23
A64: 61 | B64: 周颖 | C64: GY22060628 | D64: 220601 | E64: 修文县小箐镇中心小学 | F64: 02小学数学教师 | G64: 30 | H64: 15 | I64: 72.46 | J64: 36.23 | K64: 51.23
A65: 62 | B65: 廖雪霜 | C65: GY22060626 | D65: 220601 | E65: 修文县小箐镇中心小学 | F65: 02小学数学教师 | G65: 27 | H65: 13.5 | I65: 缺考
A66: 63 | B66: 粟多雲 | C66: GY22060710 | D66: 220605 | E66: 修文县六桶镇中心小学 | F66: 08小学科学教师 | G66: 54 | H66: 27 | I66: 85.11 | J66: 42.56 | K66: 69.56 | L66: 进入体检
A67: 64 | B67: 马廷建 | C67: GY22060701 | D67: 220605 | E67: 修文县六桶镇中心小学 | F67: 08小学科学教师 | G67: 55 | H67: 27.5 | I67: 78.33 | J67: 39.17 | K67: 66.67
A68: 65 | B68: 刘先 | C68: GY22060707 | D68: 220605 | E68: 修文县六桶镇中心小学 | F68: 08小学科学教师 | G68: 49 | H68: =G68*0.5 -> 24.5 | I68: 79.29 | J68: =ROUND(I68*0.5,2) -> 39.65 | K68: =H68+J68 -> 64.15
A69: 66 | B69: 郭艳林 | C69: GY22060721 | D69: 220603 | E69: 修文县洒坪镇中心小学 | F69: 05小学科学教师 | G69: 62 | H69: =G69*0.5 -> 31 | I69: 87.17 | J69: =ROUND(I69*0.5,2) -> 43.59 | K69: =H69+J69 -> 74.59 | L69: 进入体检
A70: 67 | B70: 王怀悦 | C70: GY22060724 | D70: 220603 | E70: 修文县洒坪镇中心小学 | F70: 05小学科学教师 | G70: 61 | H70: 30.5 | I70: 86.58 | J70: 43.29 | K70: 73.79
A71: 68 | B71: 犹莲 | C71: GY22060712 | D71: 220603 | E71: 修文县洒坪镇中心小学 | F71: 05小学科学教师 | G71: 58 | H71: 29 | I71: 84.03 | J71: 42.02 | K71: 71.02
A72: 69 | B72: 曾孔涛 | C72: GY22060603 | D72: 220604 | E72: 修文县六广镇中心小学 | F72: 01小学数学教师 | G72: 86 | H72: 43 | I72: 78.31 | J72: 39.16 | K72: 82.16 | L72: 进入体检
A73: 70 | B73: 尹旭 | C73: GY22060602 | D73: 220604 | E73: 修文县六广镇中心小学 | F73: 01小学数学教师 | G73: 37 | H73: 18.5 | I73: 缺考
A74: 71 | B74: 何林霞 | C74: GY22060619 | D74: 220603 | E74: 修文县洒坪镇中心小学 | F74: 02小学数学教师 | G74: 75 | H74: 37.5 | I74: 82.35 | J74: 41.18 | K74: 78.68 | L74: 进入体检
A75: 72 | B75: 张如玉 | C75: GY22060618 | D75: 220603 | E75: 修文县洒坪镇中心小学 | F75: 02小学数学教师 | G75: 64 | H75: 32 | I75: 81.72 | J75: 40.86 | K75: 72.86 | L75: 进入体检
A76: 73 | B76: 苏凤梅 | C76: GY22060616 | D76: 220603 | E76: 修文县洒坪镇中心小学 | F76: 02小学数学教师 | G76: 62 | H76: 31 | I76: 77.47 | J76: 38.74 | K76: 69.74 | L76: 进入体检
A77: 74 | B77: 陈霞 | C77: GY22060621 | D77: 220603 | E77: 修文县洒坪镇中心小学 | F77: 02小学数学教师 | G77: 50 | H77: 25 | I77: 75.00 | J77: 37.5 | K77: 62.5
A78: 75 | B78: 孙美红 | C78: GY22060617 | D78: 220603 | E78: 修文县洒坪镇中心小学 | F78: 02小学数学教师 | G78: 51 | H78: 25.5 | I78: 73.84 | J78: 36.92 | K78: 62.42
A79: 76 | B79: 何金娥 | C79: GY22060620 | D79: 220603 | E79: 修文县洒坪镇中心小学 | F79: 02小学数学教师 | G79: 20 | H79: 10 | I79: 81.46 | J79: 40.73 | K79: 50.73
A80: 77 | B80: 周祖蓉 | C80: GY22060517 | D80: 220601 | E80: 修文县小箐镇中心小学 | F80: 05小学美术教师 | G80: 72 | H80: 36 | I80: 78.81 | J80: 39.41 | K80: 75.41 | L80: 进入体检
A81: 78 | B81: 方子月 | C81: GY22060522 | D81: 220601 | E81: 修文县小箐镇中心小学 | F81: 05小学美术教师 | G81: 69.5 | H81: 34.75 | I81: 81.17 | J81: 40.59 | K81: 75.34 | L81: 进入体检
A82: 79 | B82: 陈忠娣 | C82: GY22060528 | D82: 220601 | E82: 修文县小箐镇中心小学 | F82: 05小学美术教师 | G82: 71.5 | H82: 35.75 | I82: 77.47 | J82: 38.74 | K82: 74.49
A83: 80 | B83: 唐宇 | C83: GY22060527 | D83: 220601 | E83: 修文县小箐镇中心小学 | F83: 05小学美术教师 | G83: 63 | H83: 31.5 | I83: 82.06 | J83: 41.03 | K83: 72.53
A84: 81 | B84: 陈庆梅 | C84: GY22060523 | D84: 220601 | E84: 修文县小箐镇中心小学 | F84: 05小学美术教师 | G84: 64.5 | H84: 32.25 | I84: 78.98 | J84: 39.49 | K84: 71.74
A85: 82 | B85: 李维仲 | C85: GY22060515 | D85: 220601 | E85: 修文县小箐镇中心小学 | F85: 05小学美术教师 | G85: 65.5 | H85: 32.75 | I85: 75.89 | J85: 37.95 | K85: 70.7
A86: 83 | B86: 肖星 | C86: GY22060803 | D86: 220605 | E86: 修文县六桶镇中心小学 | F86: 06小学音乐教师 | G86: 75.5 | H86: 37.75 | I86: 78.07 | J86: 39.04 | K86: 76.79 | L86: 进入体检
A87: 84 | B87: 袁翔 | C87: GY22060807 | D87: 220605 | E87: 修文县六桶镇中心小学 | F87: 06小学音乐教师 | G87: 70.5 | H87: 35.25 | I87: 80.31 | J87: 40.16 | K87: 75.41 | L87: 进入体检
A88: 85 | B88: 陈琴 | C88: GY22060811 | D88: 220605 | E88: 修文县六桶镇中心小学 | F88: 06小学音乐教师 | G88: 62.5 | H88: 31.25 | I88: 86.67 | J88: 43.34 | K88: 74.59
A89: 86 | B89: 徐翠霞 | C89: GY22060808 | D89: 220605 | E89: 修文县六桶镇中心小学 | F89: 06小学音乐教师 | G89: 75 | H89: 37.5 | I89: 72.58 | J89: 36.29 | K89: 73.79
A90: 87 | B90: 罗明艳 | C90: GY22060813 | D90: 220605 | E90: 修文县六桶镇中心小学 | F90: 06小学音乐教师 | G90: 53 | H90: 26.5 | I90: 83.04 | J90: 41.52 | K90: 68.02
A91: 88 | B91: 祝汪艳 | C91: GY22060812 | D91: 220605 | E91: 修文县六桶镇中心小学 | F91: 06小学音乐教师 | G91: 46 | H91: 23 | I91: 缺考
A92: 89 | B92: 黄永鲜 | C92: GY22060817 | D92: 220603 | E92: 修文县洒坪镇中心小学 | F92: 03小学音乐教师 | G92: 73.5 | H92: 36.75 | I92: 80.57 | J92: 40.29 | K92: 77.04 | L92: 进入体检
A93: 90 | B93: 潘明丹 | C93: GY22060816 | D93: 220603 | E93: 修文县洒坪镇中心小学 | F93: 03小学音乐教师 | G93: 64.5 | H93: 32.25 | I93: 78.91 | J93: 39.46 | K93: 71.71
A94: 91 | B94: 吴洪敏 | C94: GY22060819 | D94: 220603 | E94: 修文县洒坪镇中心小学 | F94: 03小学音乐教师 | G94: 53.5 | H94: 26.75 | I94: 78.24 | J94: 39.12 | K94: 65.87
A95: 92 | B95: 周锐 | C95: GY22060823 | D95: 220602 | E95: 修文县小坝小学 | F95: 01小学音乐教师 | G95: 70.5 | H95: 35.25 | I95: 79.03 | J95: 39.52 | K95: 74.77 | L95: 进入体检
A96: 93 | B96: 郭进玲 | C96: GY22060822 | D96: 220602 | E96: 修文县小坝小学 | F96: 01小学音乐教师 | G96: 62.5 | H96: 31.25 | I96: 75.97 | J96: 37.99 | K96: 69.24
A97: 94 | B97: 晏洁 | C97: GY22060821 | D97: 220602 | E97: 修文县小坝小学 | F97: 01小学音乐教师 | G97: 58.5 | H97: 29.25 | I97: 74.00 | J97: 37 | K97: 66.25
A98: 95 | B98: 袁灿 | C98: GY22060905 | D98: 220601 | E98: 修文县小箐镇中心小学 | F98: 03小学音乐教师 | G98: 88 | H98: 44 | I98: 75.87 | J98: 37.94 | K98: 81.94 | L98: 进入体检
A99: 96 | B99: 张云沈 | C99: GY22060908 | D99: 220601 | E99: 修文县小箐镇中心小学 | F99: 03小学音乐教师 | G99: 70.5 | H99: 35.25 | I99: 81.48 | J99: 40.74 | K99: 75.99
A100: 97 | B100: 钱可欣 | C100: GY22060903 | D100: 220601 | E100: 修文县小箐镇中心小学 | F100: 03小学音乐教师 | G100: 67.5 | H100: 33.75 | I100: 84.27 | J100: 42.14 | K100: 75.89
A101: 98 | B101: 吴清艳 | C101: GY22061028 | D101: 220605 | E101: 修文县六桶镇中心小学 | F101: 04小学英语教师 | G101: 88 | H101: 44 | I101: 85.62 | J101: 42.81 | K101: 86.81 | L101: 进入体检
A102: 99 | B102: 顾敏 | C102: GY22061030 | D102: 220605 | E102: 修文县六桶镇中心小学 | F102: 04小学英语教师 | G102: 92 | H102: 46 | I102: 79.38 | J102: 39.69 | K102: 85.69 | L102: 进入体检
A103: 100 | B103: 宋文霞 | C103: GY22061008 | D103: 220605 | E103: 修文县六桶镇中心小学 | F103: 04小学英语教师 | G103: 81 | H103: =G103*0.5 -> 40.5 | I103: 84.76 | J103: 42.38 | K103: =H103+J103 -> 82.88
A104: 101 | B104: 李娅金 | C104: GY22061021 | D104: 220605 | E104: 修文县六桶镇中心小学 | F104: 04小学英语教师 | G104: 78 | H104: 39 | I104: 85.51 | J104: 42.76 | K104: 81.76
A105: 102 | B105: 罗梅 | C105: GY22061015 | D105: 220605 | E105: 修文县六桶镇中心小学 | F105: 04小学英语教师 | G105: 80 | H105: 40 | I105: 81.94 | J105: 40.97 | K105: 80.97
A106: 103 | B106: 邓微曦 | C106: GY22061014 | D106: 220605 | E106: 修文县六桶镇中心小学 | F106: 04小学英语教师 | G106: 79 | H106: 39.5 | I106: 78.79 | J106: 39.4 | K106: 78.9
A107: 104 | B107: 陈贵彬 | C107: GY22061113 | D107: 220605 | E107: 修文县六桶镇中心小学 | F107: 07小学体育教师 | G107: 61 | H107: 30.5 | I107: 82.70 | J107: 41.35 | K107: 71.85 | L107: 进入体检
A108: 105 | B108: 王海飞 | C108: GY22061109 | D108: 220605 | E108: 修文县六桶镇中心小学 | F108: 07小学体育教师 | G108: 55 | H108: 27.5 | I108: 79.85 | J108: 39.93 | K108: 67.43
A109: 106 | B109: 王和庆 | C109: GY22061110 | D109: 220605 | E109: 修文县六桶镇中心小学 | F109: 07小学体育教师 | G109: 55 | H109: 27.5 | I109: 85.65 | J109: 42.83 | K109: 70.33
A110: 107 | B110: 李文标 | C110: GY22061125 | D110: 220603 | E110: 修文县洒坪镇中心小学 | F110: 04小学体育教师 | G110: 76 | H110: 38 | I110: 81.64 | J110: 40.82 | K110: 78.82 | L110: 进入体检
A111: 108 | B111: 简凯 | C111: GY22061123 | D111: 220603 | E111: 修文县洒坪镇中心小学 | F111: 04小学体育教师 | G111: 58 | H111: 29 | I111: 75.35 | J111: 37.68 | K111: 66.68
A112: 109 | B112: 姜三桃 | C112: GY22061122 | D112: 220603 | E112: 修文县洒坪镇中心小学 | F112: 04小学体育教师 | G112: 57 | H112: 28.5 | I112: 77.89 | J112: 38.95 | K112: 67.45
A113: 110 | B113: 安鑫 | C113: GY22061124 | D113: 220603 | E113: 修文县洒坪镇中心小学 | F113: 04小学体育教师 | G113: 57 | H113: 28.5 | I113: 缺考
A114: 111 | B114: 陈旺旺 | C114: GY22061206 | D114: 220602 | E114: 修文县小坝小学 | F114: 02小学体育教师 | G114: 69 | H114: 34.5 | I114: 79.58 | J114: 39.79 | K114: 74.29 | L114: 进入体检
A115: 112 | B115: 郭喜龙 | C115: GY22061208 | D115: 220602 | E115: 修文县小坝小学 | F115: 02小学体育教师 | G115: 69 | H115: 34.5 | I115: 78.50 | J115: 39.25 | K115: 73.75
A116: 113 | B116: 刘林 | C116: GY22061201 | D116: 220602 | E116: 修文县小坝小学 | F116: 02小学体育教师 | G116: 60 | H116: 30 | I116: 80.07 | J116: 40.04 | K116: 70.04
A117: 114 | B117: 方争健 | C117: GY22061215 | D117: 220601 | E117: 修文县小箐镇中心小学 | F117: 04小学体育教师 | G117: 74 | H117: 37 | I117: 81.97 | J117: 40.99 | K117: 77.99 | L117: 进入体检
A118: 115 | B118: 王兴玲 | C118: GY22061211 | D118: 220601 | E118: 修文县小箐镇中心小学 | F118: 04小学体育教师 | G118: 71 | H118: 35.5 | I118: 77.84 | J118: 38.92 | K118: 74.42
A119: 116 | B119: 赵伟 | C119: GY22061213 | D119: 220601 | E119: 修文县小箐镇中心小学 | F119: 04小学体育教师 | G119: 67 | H119: 33.5 | I119: 79.16 | J119: 39.58 | K119: 73.08

Sheet 进入体检名单
A1: 附件1：
A2: 修文县2022年“特岗计划”教师招聘总成绩及进入体检人员名单
A3: 序号 | B3: 姓名 | C3: 准考证号 | D3: 招聘单位代码 | E3: 招聘单位 | F3: 招聘岗位代码及岗位名称 | G3: 笔试成绩（100分制） | H3: 笔试成绩50%折合分 | I3: 面试成绩（100分制） | J3: 面试成绩50%折合分 | K3: 总成绩 | L3: 是否进入体检
A4: 1 | B4: 罗慧 | C4: GY22060204 | D4: 220605 | E4: 修文县六桶镇中心小学 | F4: 01小学语文教师 | G4: 77 | H4: 38.5 | I4: 87.75 | J4: 43.88 | K4: 82.38 | L4: 进入体检
A5: 2 | B5: 姚沁怡 | C5: GY22060223 | D5: 220605 | E5: 修文县六桶镇中心小学 | F5: 01小学语文教师 | G5: 75.5 | H5: 37.75 | I5: 87.75 | J5: 43.88 | K5: 81.63 | L5: 进入体检
A6: 3 | B6: 胡群 | C6: GY22060107 | D6: 220605 | E6: 修文县六桶镇中心小学 | F6: 01小学语文教师 | G6: 70.5 | H6: 35.25 | I6: 90.64 | J6: 45.32 | K6: 80.57 | L6: 进入体检
A7: 4 | B7: 李惠英 | C7: GY22060208 | D7: 220605 | E7: 修文县六桶镇中心小学 | F7: 01小学语文教师 | G7: 71.5 | H7: 35.75 | I7: 85.86 | J7: 42.93 | K7: 78.68 | L7: 进入体检
A8: 5 | B8: 汪梅 | C8: GY22060222 | D8: 220605 | E8: 修文县六桶镇中心小学 | F8: 02小学语文教师 | G8: 78 | H8: 39 | I8: 90.15 | J8: 45.08 | K8: 84.08 | L8: 进入体检
A9: 6 | B9: 崔同娇 | C9: GY22060229 | D9: 220605 | E9: 修文县六桶镇中心小学 | F9: 02小学语文教师 | G9: 78.5 | H9: 39.25 | I9: 86.29 | J9: 43.15 | K9: 82.4 | L9: 进入体检
A10: 7 | B10: 李惠 | C10: GY22060205 | D10: 220605 | E10: 修文县六桶镇中心小学 | F10: 02小学语文教师 | G10: 74 | H10: 37 | I10: 84.36 | J10: 42.18 | K10: 79.18 | L10: 进入体检
A11: 8 | B11: 何倩银 | C11: GY22060414 | D11: 220603 | E11: 修文县洒坪镇中心小学 | F11: 01小学语文教师 | G11: 74.5 | H11: 37.25 | I11: 88.26 | J11: 44.13 | K11: 81.38 | L11: 进入体检
A12: 9 | B12: 彭家迪 | C12: GY22060313 | D12: 220603 | E12: 修文县洒坪镇中心小学 | F12: 01小学语文教师 | G12: 76.5 | H12: 38.25 | I12: 83.90 | J12: 41.95 | K12: 80.2 | L12: 进入体检
A13: 10 | B13: 刘蓉 | C13: GY22060323 | D13: 220603 | E13: 修文县洒坪镇中心小学 | F13: 01小学语文教师 | G13: 72 | H13: 36 | I13: 84.69 | J13: 42.35 | K13: 78.35 | L13: 进入体检
A14: 11 | B14: 王梦霞 | C14: GY22060321 | D14: 220603 | E14: 修文县洒坪镇中心小学 | F14: 01小学语文教师 | G14: 68 | H14: 34 | I14: 88.66 | J14: 44.33 | K14: 78.33 | L14: 进入体检
A15: 12 | B15: 高丽 | C15: GY22060424 | D15: 220601 | E15: 修文县小箐镇中心小学 | F15: 01小学语文教师 | G15: 84 | H15: 42 | I15: 85.94 | J15: 42.97 | K15: 84.97 | L15: 进入体检
A16: 13 | B16: 黎国洋 | C16: GY22060421 | D16: 220601 | E16: 修文县小箐镇中心小学 | F16: 01小学语文教师 | G16: 79 | H16: 39.5 | I16: 89.48 | J16: 44.74 | K16: 84.24 | L16: 进入体检
A17: 14 | B17: 李社菊 | C17: GY22060915 | D17: 220605 | E17: 修文县六桶镇中心小学 | F17: 05小学道德与法治教师 | G17: 81 | H17: 40.5 | I17: 84.50 | J17: 42.25 | K17: 82.75 | L17: 进入体检
A18: 15 | B18: 陈红艳 | C18: GY22060610 | D18: 220605 | E18: 修文县六桶镇中心小学 | F18: 03小学数学教师 | G18: 76 | H18: 38 | I18: 88.31 | J18: 44.16 | K18: 82.16 | L18: 进入体检
A19: 16 | B19: 李冰 | C19: GY22060607 | D19: 220605 | E19: 修文县六桶镇中心小学 | F19: 03小学数学教师 | G19: 76 | H19: 38 | I19: 83.43 | J19: 41.72 | K19: 79.72 | L19: 进入体检
A20: 17 | B20: 罗莹莹 | C20: GY22060606 | D20: 220605 | E20: 修文县六桶镇中心小学 | F20: 03小学数学教师 | G20: 73 | H20: 36.5 | I20: 83.31 | J20: 41.66 | K20: 78.16 | L20: 进入体检
A21: 18 | B21: 冯艺 | C21: GY22060615 | D21: 220605 | E21: 修文县六桶镇中心小学 | F21: 03小学数学教师 | G21: 72 | H21: 36 | I21: 83.32 | J21: 41.66 | K21: 77.66 | L21: 进入体检
A22: 19 | B22: 晏蜜 | C22: GY22060611 | D22: 220605 | E22: 修文县六桶镇中心小学 | F22: 03小学数学教师 | G22: 57 | H22: 28.5 | I22: 85.15 | J22: 42.58 | K22: 71.08 | L22: 进入体检
A23: 20 | B23: 李丹 | C23: GY22060623 | D23: 220601 | E23: 修文县小箐镇中心小学 | F23: 02小学数学教师 | G23: 47 | H23: 23.5 | I23: 87.99 | J23: 44 | K23: 67.5 | L23: 进入体检
A24: 21 | B24: 杨娅婷 | C24: GY22060627 | D24: 220601 | E24: 修文县小箐镇中心小学 | F24: 02小学数学教师 | G24: 37 | H24: 18.5 | I24: 85.12 | J24: 42.56 | K24: 61.06 | L24: 进入体检
A25: 22 | B25: 粟多雲 | C25: GY22060710 | D25: 220605 | E25: 修文县六桶镇中心小学 | F25: 08小学科学教师 | G25: 54 | H25: 27 | I25: 85.11 | J25: 42.56 | K25: 69.56 | L25: 进入体检
A26: 23 | B26: 郭艳林 | C26: GY22060721 | D26: 220603 | E26: 修文县洒坪镇中心小学 | F26: 05小学科学教师 | G26: 62 | H26: 31 | I26: 87.17 | J26: 43.59 | K26: 74.59 | L26: 进入体检
A27: 24 | B27: 曾孔涛 | C27: GY22060603 | D27: 220604 | E27: 修文县六广镇中心小学 | F27: 01小学数学教师 | G27: 86 | H27: 43 | I27: 78.31 | J27: 39.16 | K27: 82.16 | L27: 进入体检
A28: 25 | B28: 何林霞 | C28: GY22060619 | D28: 220603 | E28: 修文县洒坪镇中心小学 | F28: 02小学数学教师 | G28: 75 | H28: 37.5 | I28: 82.35 | J28: 41.18 | K28: 78.68 | L28: 进入体检
A29: 26 | B29: 张如玉 | C29: GY22060618 | D29: 220603 | E29: 修文县洒坪镇中心小学 | F29: 02小学数学教师 | G29: 64 | H29: 32 | I29: 81.72 | J29: 40.86 | K29: 72.86 | L29: 进入体检
A30: 27 | B30: 苏凤梅 | C30: GY22060616 | D30: 220603 | E30: 修文县洒坪镇中心小学 | F30: 02小学数学教师 | G30: 62 | H30: 31 | I30: 77.47 | J30: 38.74 | K30: 69.74 | L30: 进入体检
A31: 28 | B31: 周祖蓉 | C31: GY22060517 | D31: 220601 | E31: 修文县小箐镇中心小学 | F31: 05小学美术教师 | G31: 72 | H31: 36 | I31: 78.81 | J31: 39.41 | K31: 75.41 | L31: 进入体检
A32: 29 | B32: 方子月 | C32: GY22060522 | D32: 220601 | E32: 修文县小箐镇中心小学 | F32: 05小学美术教师 | G32: 69.5 | H32: 34.75 | I32: 81.17 | J32: 40.59 | K32: 75.34 | L32: 进入体检
A33: 30 | B33: 肖星 | C33: GY22060803 | D33: 220605 | E33: 修文县六桶镇中心小学 | F33: 06小学音乐教师 | G33: 75.5 | H33: 37.75 | I33: 78.07 | J33: 39.04 | K33: 76.79 | L33: 进入体检
A34: 31 | B34: 袁翔 | C34: GY22060807 | D34: 220605 | E34: 修文县六桶镇中心小学 | F34: 06小学音乐教师 | G34: 70.5 | H34: 35.25 | I34: 80.31 | J34: 40.16 | K34: 75.41 | L34: 进入体检
A35: 32 | B35: 黄永鲜 | C35: GY22060817 | D35: 220603 | E35: 修文县洒坪镇中心小学 | F35: 03小学音乐教师 | G35: 73.5 | H35: 36.75 | I35: 80.57 | J35: 40.29 | K35: 77.04 | L35: 进入体检
A36: 33 | B36: 周锐 | C36: GY22060823 | D36: 220602 | E36: 修文县小坝小学 | F36: 01小学音乐教师 | G36: 70.5 | H36: 35.25 | I36: 79.03 | J36: 39.52 | K36: 74.77 | L36: 进入体检
A37: 34 | B37: 袁灿 | C37: GY22060905 | D37: 220601 | E37: 修文县小箐镇中心小学 | F37: 03小学音乐教师 | G37: 88 | H37: 44 | I37: 75.87 | J37: 37.94 | K37: 81.94 | L37: 进入体检
A38: 35 | B38: 吴清艳 | C38: GY22061028 | D38: 220605 | E38: 修文县六桶镇中心小学 | F38: 04小学英语教师 | G38: 88 | H38: 44 | I38: 85.62 | J38: 42.81 | K38: 86.81 | L38: 进入体检
A39: 36 | B39: 顾敏 | C39: GY22061030 | D39: 220605 | E39: 修文县六桶镇中心小学 | F39: 04小学英语教师 | G39: 92 | H39: 46 | I39: 79.38 | J39: 39.69 | K39: 85.69 | L39: 进入体检
A40: 37 | B40: 陈贵彬 | C40: GY22061113 | D40: 220605 | E40: 修文县六桶镇中心小学 | F40: 07小学体育教师 | G40: 61 | H40: 30.5 | I40: 82.70 | J40: 41.35 | K40: 71.85 | L40: 进入体检
A41: 38 | B41: 李文标 | C41: GY22061125 | D41: 220603 | E41: 修文县洒坪镇中心小学 | F41: 04小学体育教师 | G41: 76 | H41: 38 | I41: 81.64 | J41: 40.82 | K41: 78.82 | L41: 进入体检
A42: 39 | B42: 陈旺旺 | C42: GY22061206 | D42: 220602 | E42: 修文县小坝小学 | F42: 02小学体育教师 | G42: 69 | H42: 34.5 | I42: 79.58 | J42: 39.79 | K42: 74.29 | L42: 进入体检
A43: 40 | B43: 方争健 | C43: GY22061215 | D43: 220601 | E43: 修文县小箐镇中心小学 | F43: 04小学体育教师 | G43: 74 | H43: 37 | I43: 81.97 | J43: 40.99 | K43: 77.99 | L43: 进入体检
